fUSD/lending_fUSD_20251129
["ID","MTS","AMOUNT","RATE_DAILY","PERIOD"]
[395080622,1764408672652,-1008.0,0.00016247,2]
[395080623,1764408672662,-500.0,0.00016247,2]
[395080624,1764408672671,-735.0,0.00016247,2]
[395080625,1764408672681,-280.0,0.00016247,2]
[395080626,1764408672691,-150.0,0.00016247,2]
[395080627,1764408672702,-500.0,0.00016247,2]
[395080628,1764408672711,-500.0,0.00016247,2]
[395080629,1764408672720,-500.0,0.00016247,2]
[395080630,1764408672729,-621.89568788,0.00016247,2]
[395080631,1764408672738,-500.0,0.00016247,2]
[395080632,1764408672748,-500.0,0.00016247,2]
[395080633,1764408672757,-1842.0,0.0001626,2]
[395080634,1764408672766,-600.0,0.00016274,2]
[395080635,1764408672776,-322.89898713,0.00016284,2]
[395080636,1764408672786,-816.79,0.00016295,2]
[395080637,1764408672795,-222.78,0.00016299,2]
[395080638,1764408672804,-666.0,0.00016306,2]
[395080639,1764408672814,-151.0,0.00016306,2]
[395080640,1764408672823,-1002.32,0.00016306,2]
[395080641,1764408672832,-8609.96436146,0.0001631,2]
[395080642,1764408672842,-500.0,0.00016324,2]
[395080643,1764408672855,-500.0,0.00016324,2]
[395080644,1764408672864,-500.0,0.00016324,2]
[395080645,1764408672873,-500.0,0.00016324,2]
[395080646,1764408672883,-500.0,0.00016324,2]
[395080647,1764408672892,-500.0,0.00016324,2]
[395080648,1764408672902,-500.0,0.00016324,2]
[395080649,1764408672911,-500.0,0.00016324,2]
[395080650,1764408672920,-500.0,0.00016324,2]
[395080651,1764408672929,-500.0,0.00016324,2]
[395080652,1764408672938,-500.0,0.00016324,2]
[395080653,1764408672947,-500.0,0.00016324,2]
[395080654,1764408672957,-500.0,0.00016324,2]
[395080655,1764408672966,-500.0,0.00016324,2]
[395080656,1764408672975,-500.0,0.00016324,2]
[395080657,1764408672984,-500.0,0.00016324,2]
[395080658,1764408672994,-500.0,0.00016324,2]
[395080659,1764408673003,-500.0,0.00016324,2]
[395080660,1764408673012,-500.0,0.00016324,2]
[395080661,1764408673021,-512.0,0.00016324,2]
[395080662,1764408673031,-6379.39809852,0.00016332,2]
[395080663,1764408673041,-200.0,0.0001634,2]
[395080664,1764408673050,-500.0,0.00016365,2]
[395080665,1764408673059,-500.0,0.00016365,2]
[395080666,1764408673068,-500.0,0.00016365,2]
[395080667,1764408673077,-500.0,0.00016365,2]
[395080668,1764408673086,-500.0,0.00016365,2]
[395080669,1764408673095,-500.0,0.00016365,2]
[395080670,1764408673104,-500.0,0.00016365,2]
[395080671,1764408673113,-500.0,0.00016365,2]
[395080672,1764408673122,-500.0,0.00016365,2]
[395080673,1764408673130,-500.0,0.00016365,2]
[395080674,1764408673139,-500.0,0.00016365,2]
[395080675,1764408673148,-500.0,0.00016365,2]
[395080676,1764408673157,-500.0,0.00016365,2]
[395080677,1764408673166,-500.0,0.00016365,2]
[395080678,1764408673175,-500.0,0.00016365,2]
[395080679,1764408673184,-500.0,0.00016365,2]
[395080680,1764408673193,-500.0,0.00016365,2]
[395080681,1764408673202,-500.0,0.00016365,2]
[395080682,1764408673212,-500.0,0.00016365,2]
[395080683,1764408673221,-500.0,0.00016365,2]
[395080684,1764408673230,-150.0,0.00016384,2]
[395080685,1764408673239,-1154.0,0.00016384,2]
[395080686,1764408673248,-500.0,0.00016384,2]
[395080687,1764408673258,-1471.0,0.00016384,2]
[395080688,1764408673267,-1008.0,0.00016384,2]
[395080689,1764408673277,-500.0,0.00016384,2]
[395080690,1764408673286,-735.0,0.00016384,2]
[395080691,1764408673295,-150.0,0.00016384,2]
[395080692,1764408673305,-500.0,0.00016384,2]
[395080693,1764408673314,-500.0,0.00016384,2]
[395080694,1764408673323,-500.0,0.00016384,2]
[395080695,1764408673333,-500.0,0.00016384,2]
[395080696,1764408673342,-500.0,0.00016384,2]
[395080697,1764408673351,-1000.0,0.00016389,2]
[395080698,1764408673360,-150.0,0.000164,2]
[395080699,1764408673370,-210.0,0.000164,2]
[395080700,1764408673380,-240.22599925,0.000164,2]
[395080701,1764408673389,-166.66,0.000164,2]
[395080702,1764408673399,-1542.71676841,0.0001641,2]
[395080703,1764408673409,-150.00000001,0.00016411,2]
[395080704,1764408673418,-200.0,0.00016411,2]
[395080705,1764408673428,-163.76965775,0.00016411,2]
[395080706,1764408673438,-150.0,0.00016411,2]
[395080707,1764408673447,-205.34,0.00016411,2]
[395080708,1764408673456,-150.0,0.00016411,2]
[395080709,1764408673466,-150.0,0.00016411,2]
[395080710,1764408673475,-289.23396553,0.00016411,2]
[395080711,1764408673485,-150.00000001,0.00016411,2]
[395080712,1764408673494,-150.0,0.00016411,2]
[395080713,1764408673503,-500.0,0.00016437,5]
[395080714,1764408673513,-500.0,0.00016437,2]
[395080715,1764408673523,-1576.67319889,0.00016438,2]
[395080716,1764408674420,-1020.03680111,0.00016438,2]
[395080717,1764408674430,-2596.71,0.00016438,2]
[395080718,1764408674440,-1363.01829687,0.00016438,2]
[395080719,1764408674551,-1233.69170313,0.00016438,2]
[395080720,1764408674561,-666.30829687,0.00016438,2]
[395080721,1764408678124,-3441.0,0.0001601,2]
[395080722,1764408678135,-1930.40170313,0.00016438,2]
[395080723,1764408678145,-2596.71,0.00016438,2]
[395080724,1764408678154,-2596.71,0.00016438,2]
[395080725,1764408678163,-6237.24,0.00016438,2]
[395080726,1764408678173,-8490.71,0.00016438,2]
[395080727,1764408678183,-332.375528,0.00016438,3]
[395080728,1764408678194,-800.0,0.00016438,2]
[395080729,1764408678204,-669.83922,0.0001644,2]
[395080730,1764408678214,-164.16,0.0001644,2]
[395080731,1764408678224,-8609.96436146,0.00016458,2]
[395080732,1764408678234,-6379.39809852,0.00016474,2]
[395080733,1764408678243,-1000.0,0.00016478,2]
[395080734,1764408678253,-300.0,0.00016499,2]
[395080735,1764408678262,-300.0,0.00016499,2]
[395080736,1764408678271,-300.0,0.00016499,2]
[395080737,1764408678280,-300.0,0.00016499,2]
[395080738,1764408678289,-323.61938136,0.00016499,2]
[395080739,1764408678298,-300.0,0.00016499,2]
[395080740,1764408678308,-300.0,0.00016499,2]
[395080741,1764408678318,-21285.52081026,0.000165,2]
[395080742,1764408678330,-9060.75118313,0.000165,2]
[395080743,1764408678340,-1000.0,0.00016521,2]
[395080744,1764408678349,-500.96785255,0.00016521,2]
[395080745,1764408678359,-1000.0,0.00016521,2]
[395080746,1764408678369,-1000.0,0.00016521,2]
[395080747,1764408678380,-1000.0,0.00016521,2]
[395080748,1764408678390,-982.47709278,0.00016521,2]
[395080749,1764408678399,-443.57242906,0.00016521,2]
[395080750,1764408678409,-150.0,0.00016521,2]
[395080751,1764408678419,-1154.0,0.00016521,2]
[395080752,1764408678428,-500.0,0.00016521,2]
[395080753,1764408678437,-1471.0,0.00016521,2]
[395080754,1764408678448,-1008.0,0.00016521,2]
[395080755,1764408678458,-500.0,0.00016521,2]
[395080756,1764408678466,-735.0,0.00016521,2]
[395080757,1764408678476,-220.586988,0.00016521,2]
[395080758,1764408678485,-500.0,0.00016521,2]
[395080759,1764408678495,-499.84444829,0.00016521,2]
[395080760,1764408678505,-250.57489667,0.00016521,2]
[395080761,1764408678514,-500.0,0.00016521,2]
[395080762,1764408678524,-500.0,0.00016521,2]
[395080763,1764408678533,-600.0,0.00016548,2]
[395080764,1764408678542,-193.0,0.00016553,2]
[395080765,1764408678552,-300.0,0.00016553,2]
[395080766,1764408678561,-300.0,0.00016553,2]
[395080767,1764408678571,-300.0,0.00016553,2]
[395080768,1764408678580,-300.0,0.00016553,2]
[395080769,1764408678590,-216.56475772,0.00016553,2]
[395080770,1764408681388,-94.31416109,0.00016553,2]
[395080771,1764408681399,-250.0,0.00016553,2]
[395080772,1764408681408,-4353.07788914,0.00016553,3]
[395080773,1764408681417,-300.0,0.00016553,2]
[395080774,1764408681427,-2500.0,0.00016553,2]
[395080775,1764408681438,-2500.0,0.00016553,2]
[395080776,1764408681447,-2500.0,0.00016553,2]
[395080777,1764408681457,-2500.0,0.00016553,2]
[395080778,1764408681467,-734.31553633,0.00016553,2]
[395080779,1764408681477,-300.0,0.00016553,2]
[395080780,1764408681487,-250.0,0.00016553,2]
[395080781,1764408681496,-195.0,0.00016553,2]
[395080782,1764408681505,-4.96111444,0.00016554,2]
[395080783,1764408681518,-341.51696319,0.00016554,2]
[395080784,1764408681527,-39863.20964424,0.00016555,2]
[395080785,1764408681536,-201.84925337,0.00016565,2]
[395080786,1764408681546,-291.47449277,0.00016566,2]
[395080787,1764408681555,-500.0,0.00016567,2]
[395080788,1764408681566,-472.21200936,0.00016573,2]
[395080789,1764408681576,-166.67,0.00016575,2]
[395080790,1764408681586,-4327.07093715,0.00016577,2]
[395080791,1764408681597,-311.1,0.00016579,2]
[395080792,1764408681607,-277.35679052,0.00016579,2]
[395080793,1764408681619,-1002.32,0.0001658,2]
[395080794,1764408681630,-967.11111419,0.00016589,2]
[395080795,1764408681644,-3313.46949468,0.0001659,2]
[395080796,1764408681654,-357.66828351,0.000166,2]
[395080797,1764408681664,-510.0,0.000166,2]
[395080798,1764408681676,-8609.96436146,0.00016605,2]
[395080799,1764408682105,-6379.39809852,0.00016616,2]
[395080800,1764408682115,-420.0,0.00016642,2]
[395080801,1764408682125,-249.0,0.00016658,2]
[395080802,1764408682135,-1154.0,0.00016658,2]
[395080803,1764408682144,-500.0,0.00016658,2]
[395080804,1764408682153,-1471.0,0.00016658,2]
[395080805,1764408682162,-1008.0,0.00016658,2]
[395080806,1764408682172,-500.0,0.00016658,2]
[395080807,1764408682182,-735.0,0.00016658,2]
[395080808,1764408682191,-500.0,0.00016658,2]
[395080809,1764408682200,-500.0,0.00016658,2]
[395080810,1764408682211,-500.0,0.00016658,2]
[395080811,1764408682220,-1853.6207701,0.00016666,2]
[395080812,1764408682230,-273.08,0.00016686,2]
[395080813,1764408682239,-247.14,0.00016688,2]
[395080814,1764408682249,-669.83921,0.0001669,2]
[395080815,1764408682258,-1680.0,0.00016726,2]
[395080816,1764408682268,-300.0,0.00016746,2]
[395080817,1764408682277,-300.0,0.00016746,2]
[395080818,1764408682287,-8609.96436146,0.00016753,2]
[395080819,1764408682299,-6379.39809852,0.00016758,2]
[395080820,1764408682308,-795.9813116,0.00016793,2]
[395080821,1764408682317,-1154.0,0.00016795,2]
[395080822,1764408682327,-500.0,0.00016795,2]
[395080823,1764408682336,-1471.0,0.00016795,2]
[395080824,1764408682346,-1008.0,0.00016795,2]
[395080825,1764408682355,-500.0,0.00016795,2]
[395080826,1764408682364,-735.0,0.00016795,2]
[395080827,1764408682373,-500.0,0.00016795,2]
[395080828,1764408682382,-500.0,0.00016795,2]
[395080829,1764408682392,-500.0,0.00016795,2]
[395080830,1764408682401,-600.0,0.00016822,2]
[395080831,1764408682410,-151.0,0.0001684,2]
[395080832,1764408682419,-666.0,0.00016854,2]
[395080833,1764408682428,-1002.32,0.00016854,2]
[395080834,1764408682437,-284.69997116,0.00016873,2]
[395080835,1764408682446,-205.92744027,0.00016894,2]
[395080836,1764408682456,-158.61,0.000169,2]
[395080837,1764408682465,-6379.39809852,0.000169,2]
[395080838,1764408682474,-8609.96436146,0.000169,2]
[395080839,1764408682483,-346.21279656,0.000169,2]
[395080840,1764408682492,-877.21856255,0.000169,2]
[395080841,1764408682501,-1169.24862295,0.000169,2]
[395080842,1764408682510,-1154.0,0.00016932,2]
[395080843,1764408682519,-500.0,0.00016932,2]
[395080844,1764408682527,-1471.0,0.00016932,2]
[395080845,1764408682537,-1008.0,0.00016932,2]
[395080846,1764408682546,-500.0,0.00016932,2]
[395080847,1764408682555,-735.0,0.00016932,2]
[395080848,1764408682566,-578.69983249,0.00016932,2]
[395080849,1764408682575,-500.0,0.00016932,2]
[395080850,1764408682585,-500.0,0.00016932,2]
[395080851,1764408682594,-669.83922,0.0001694,2]
[395080852,1764408682603,-300.0,0.00016972,2]
[395080853,1764408682615,-2596.71,0.00016972,2]
[395080854,1764408682625,-500.0,0.00016973,2]
[395080855,1764408682636,-500.0,0.00016973,2]
[395080856,1764408682647,-150.0,0.00016973,2]
[395080857,1764408682656,-500.0,0.00016973,2]
[395080858,1764408682665,-501.74534178,0.00016973,2]
[395080859,1764408682675,-500.0,0.00016973,2]
[395080860,1764408682683,-503.22829539,0.00016973,2]
[395080861,1764408682692,-500.0,0.00016973,2]
[395080862,1764408682701,-161.73361769,0.00016973,2]
[395080863,1764408682711,-500.0,0.00016973,2]
[395080864,1764408682720,-500.0,0.00016973,2]
[395080865,1764408682729,-500.0,0.00016973,2]
[395080866,1764408682739,-500.0,0.00016973,2]
[395080867,1764408682747,-595.00784422,0.00016973,2]
[395080868,1764408682757,-502.46810807,0.00016973,2]
[395080869,1764408682766,-500.0,0.00016973,2]
[395080870,1764408682775,-500.0,0.00016973,2]
[395080871,1764408682785,-500.0,0.00016973,2]
[395080872,1764408682794,-500.0,0.00016973,2]
[395080873,1764408682803,-500.0,0.00016973,2]
[395080874,1764408682811,-500.0,0.00016973,2]
[395080875,1764408682821,-500.65345159,0.00016973,2]
[395080876,1764408682830,-500.0,0.00016973,2]
[395080877,1764408682839,-601.63877075,0.00016973,2]
[395080878,1764408682850,-165.01800137,0.00016973,2]
[395080879,1764408682859,-500.0,0.00016973,2]
[395080880,1764408682869,-500.0,0.00016973,2]
[395080881,1764408682878,-500.0,0.00016973,2]
[395080882,1764408682887,-500.0,0.00016973,2]
[395080883,1764408682895,-500.40328974,0.00016973,2]
[395080884,1764408682905,-502.43978726,0.00016973,2]
[395080885,1764408682914,-500.0,0.00016973,2]
[395080886,1764408682923,-160.05193945,0.00016973,2]
[395080887,1764408682932,-500.0,0.00016973,2]
[395080888,1764408682941,-502.39177324,0.00016973,2]
[395080889,1764408682950,-175.94033749,0.00016973,2]
[395080890,1764408682959,-500.0,0.00016973,2]
[395080891,1764408682968,-500.0,0.00016973,2]
[395080892,1764408682977,-500.0,0.00016973,2]
[395080893,1764408682986,-502.99679593,0.00016973,2]
[395080894,1764408682995,-500.0,0.00016973,2]
[395080895,1764408683004,-183.87070732,0.00016973,2]
[395080896,1764408683013,-500.0,0.00016973,2]
[395080897,1764408683023,-250.0,0.00016998,2]
[395080898,1764408683033,-250.0,0.00016998,2]
[395080899,1764408683042,-250.0,0.00016998,2]
[395080900,1764408683051,-250.0,0.00016998,2]
[395080901,1764408683062,-250.0,0.00016998,2]
[395080902,1764408683071,-250.0,0.00016998,2]
[395080903,1764408683081,-250.0,0.00016998,2]
[395080904,1764408683090,-250.0,0.00016998,2]
[395080905,1764408683099,-250.0,0.00016998,2]
[395080906,1764408683109,-250.0,0.00016998,2]
[395080907,1764408683118,-250.0,0.00016998,2]
[395080908,1764408683127,-250.0,0.00016998,2]
[395080909,1764408683137,-250.0,0.00016998,2]
[395080910,1764408683147,-250.0,0.00016998,2]
[395080911,1764408683156,-250.0,0.00016998,2]
[395080912,1764408683165,-250.0,0.00016998,2]
[395080913,1764408683175,-250.0,0.00016998,2]
[395080914,1764408683184,-250.0,0.00016998,2]
[395080915,1764408683194,-250.0,0.00016998,2]
[395080916,1764408683204,-250.0,0.00016998,2]
[395080917,1764408683214,-300.0,0.00016998,2]
[395080918,1764408683224,-300.0,0.00016998,2]
[395080919,1764408683234,-500.0,0.00016998,6]
[395080920,1764408683243,-300.0,0.00016998,2]
[395080921,1764408683253,-300.0,0.00016999,2]
[395080922,1764408683262,-300.0,0.00016999,2]
[395080923,1764408683273,-300.0,0.00016999,2]
[395080924,1764408683283,-2596.71,0.00016999,2]
[395080925,1764408683293,-2596.71,0.00016999,2]
[395080926,1764408683302,-2596.71,0.00016999,2]
[395080927,1764408683312,-2596.71,0.00016999,2]
[395080928,1764408683322,-2596.71,0.00016999,2]
[395080929,1764408683331,-2596.71,0.00016999,2]
[395080930,1764408683341,-2596.71,0.00016999,2]
[395080931,1764408683350,-2596.71,0.00016999,2]
[395080932,1764408683360,-2596.71,0.00016999,2]
[395080933,1764408683370,-2596.71,0.00016999,2]
[395080934,1764408683379,-2596.71,0.00016999,2]
[395080935,1764408683388,-2596.71,0.00016999,2]
[395080936,1764408683398,-2596.71,0.00016999,2]
[395080937,1764408683407,-2596.71,0.00016999,2]
[395080938,1764408683416,-2596.71,0.00016999,2]
[395080939,1764408683425,-2596.71,0.00016999,2]
[395080940,1764408683435,-2596.88649532,0.00016999,2]
[395080941,1764408683444,-500.0,0.00016999,7]
[395080942,1764408683454,-500.0,0.00016999,8]
[395080943,1764408683463,-500.0,0.00016999,9]
[395080944,1764408683473,-500.0,0.00016999,10]
[395080945,1764408683482,-500.0,0.00016999,11]
[395080946,1764408683492,-500.0,0.00016999,12]
[395080947,1764408683502,-500.0,0.00016999,13]
[395080948,1764408683511,-500.0,0.00016999,14]
[395080949,1764408683521,-500.0,0.00016999,15]
[395080950,1764408683531,-500.0,0.00016999,16]
[395080951,1764408683541,-641.25458284,0.00016999,17]
[395080952,1764408683550,-300.0,0.00016999,2]
[395080953,1764408683560,-221.63,0.00016999,2]
[395080954,1764408683570,-244743.7472708,0.00017,2]
[395080955,1764408683585,-9098.36906577,0.00017,2]
[395080956,1764408683596,-341.27162896,0.00017,2]
[395080957,1764408683607,-71074.59954999,0.00017,2]
[395080958,1764408685730,-945.89473246,0.00017,2]
[395080959,1764408685741,-16980.4662963,0.00017,2]
[395080960,1764408685753,-2147.1,0.00017,2]
[395080961,1764408685764,-1067.19176053,0.00017,2]
[395080962,1764408685775,-313.68419995,0.00017,2]
[395080963,1764408738773,-168.0,0.00014967,2]
[395080964,1764408738797,-132.0,0.00014972,2]
[395080965,1764408784385,157.04,0.00011816,2]
[395080966,1764408784576,157.04,0.00013786,2]
[395080967,1764408786015,-225.56507546,0.00014968,2]
[395080968,1764408823870,334.56,0.00014489,2]
[395080969,1764408850448,1818.16911174,0.00022,30]
[395080970,1764408888833,-74.43492454,0.00014968,2]
[395080971,1764408888855,-225.56507546,0.00014969,2]
[395080972,1764408904693,999.0,0.0001474,3]
[395080973,1764408950588,-24.43492454,0.00014969,2]
[395080974,1764408950610,-195.0,0.00014969,2]
[395080975,1764409009365,-1500.0,0.00014721,2]
[395080978,1764409085517,-383.47885097,0.0001497,2]
[395080979,1764409123922,-291.19084051,0.00014969,2]
[395080980,1764409162393,-249.54801596,0.00014969,2]
[395080981,1764409181365,-150.0,0.00014969,2]
[395080982,1764409181385,-0.45198404,0.00014969,2]
[395080983,1764409181406,-77.81403514,0.00014969,2]
[395080984,1764409203676,161.6722578,0.00025,120]
[395080985,1764409204159,-117.18596486,0.00014969,2]
[395080986,1764409204182,-300.0,0.00014969,2]
[395080987,1764409204206,-3.02443514,0.0001497,2]
[395080988,1764409212692,163.0,0.0002244,120]
[395080989,1764409213703,163.0,0.00023562,120]
[395080990,1764409215187,163.0,0.0002474,120]
[395080991,1764409215732,-189.80341009,0.00014969,2]
[395080992,1764409225687,1403.62,0.00014519,2]
[395080993,1764409225732,-110.19658991,0.00014969,2]
[395080994,1764409225754,-222.25445417,0.00014969,2]
[395080995,1764409228303,424.5872,0.00014868,2]
[395080996,1764409236479,-500.0,0.00014969,2]
[395080997,1764409247657,-174.03173377,0.00014969,2]
[395080998,1764409274904,-303.71381206,0.00014969,2]
[395080999,1764409274926,-212.0,0.00014969,2]
[395081000,1764409274948,-78.80653496,0.00014969,2]
[395081001,1764409286806,-221.19346504,0.00014969,2]
[395081002,1764409286828,-191.70595697,0.0001497,2]
[395081003,1764409286850,-18.15090815,0.0001497,2]
[395081004,1764409295712,-238.71243769,0.0001497,2]
[395081005,1764409315266,-243.13665416,0.0001497,2]
[395081006,1764409315289,-138.24081076,0.0001497,2]
[395081007,1764409321490,-361.75918924,0.0001497,2]
[395081008,1764409321511,-138.24081076,0.0001497,2]
[395081009,1764409326512,-150.0,0.00014969,2]
[395081010,1764409326533,-46.32163179,0.0001497,2]
[395081011,1764409331455,-315.43755745,0.0001497,2]
[395081012,1764409331477,-128.63284029,0.0001497,2]
[395081013,1764409362759,1600.0,0.00014477,2]
[395081014,1764409419398,1368.33,0.00014922,2]
[395081015,1764409506133,-363.5159703,0.00014972,2]
[395081016,1764409506155,-90.59375591,0.00014972,2]
[395081017,1764409506393,163.0,0.0002296,120]
[395081018,1764409508002,163.0,0.00024108,120]
[395081019,1764409516994,150.0,0.00014721,2]
[395081020,1764409517654,150.0,0.00014721,2]
[395081021,1764409520587,-104.40624409,0.00014972,2]
[395081022,1764409520608,-300.0,0.00014972,2]
[395081023,1764409520632,-36.0,0.00014972,2]
[395081024,1764409522450,1235.16,0.0001448,2]
[395081025,1764409523274,150.0,0.00014721,2]
[395081026,1764409523527,150.0,0.00014721,2]
[395081027,1764409525316,-150.0,0.00014954,2]
[395081028,1764409527143,150.0,0.00014721,2]
[395081029,1764409527549,150.0,0.00014721,2]
[395081030,1764409540839,321.82,0.00014423,2]
[395081031,1764409547268,-150.0,0.00014721,2]
[395081032,1764409547290,-150.0,0.00014721,2]
[395081033,1764409547311,-150.0,0.00014721,2]
[395081034,1764409547333,-150.0,0.00014721,2]
[395081035,1764409547354,-100.84328121,0.00014721,2]
[395081036,1764409556017,-49.15671879,0.00014721,2]
[395081037,1764409556039,-126.62099121,0.00014721,2]
[395081038,1764409579681,-23.37900879,0.00014721,2]
[395081039,1764409610187,166.66,0.0001371,2]
[395081040,1764409610595,166.66,0.00013998,2]
[395081041,1764409610994,166.66,0.00014287,2]
[395081042,1764409611126,166.66,0.00014576,2]
[395081043,1764409620145,-166.66,0.00014864,2]
[395081054,1764409650379,571.2,7.205e-05,2]
[395081055,1764409650538,571.2,7.584e-05,2]
[395081056,1764409650658,571.2,7.963e-05,2]
[395081057,1764409650800,571.2,8.343e-05,2]
[395081058,1764409650945,571.2,8.722e-05,2]
[395081059,1764409651221,571.2,9.101e-05,2]
[395081060,1764409651409,571.2,9.48e-05,2]
[395081061,1764409651601,571.2,9.859e-05,2]
[395081062,1764409651831,571.2,0.00010239,2]
[395081063,1764409652357,571.2,0.00010618,2]
[395081064,1764409652544,571.2,0.00010997,2]
[395081065,1764409652829,571.2,0.00011376,2]
[395081066,1764409653085,571.2,0.00011755,2]
[395081067,1764409653645,571.2,0.00012135,2]
[395081068,1764409653838,571.2,0.00012514,2]
[395081069,1764409654015,571.2,0.00012893,2]
[395081070,1764409654216,571.2,0.00013272,2]
[395081071,1764409654379,289.61,0.00013651,2]
[395081072,1764409654400,281.59,0.00013651,2]
[395081073,1764409654884,571.2,0.00014031,2]
[395081074,1764409655078,571.2,0.0001441,2]
[395081075,1764409719106,8576.02,0.000144,2]
[395081076,1764409719128,5975.48,0.000144,2]
[395081077,1764409727420,-150.0,0.00015048,2]
[395081079,1764409772510,5757.12,0.00013693,2]
[395081080,1764409805862,-225.69316841,0.00015118,2]
[395081081,1764409821615,-95.26353358,0.00015118,2]
[395081082,1764409821636,-204.73646642,0.00015118,2]
[395081124,1764409846418,-9.26353358,0.00015118,2]
[395081125,1764409846428,-166.66,0.00015124,2]
[395081126,1764409846437,-150.0,0.00015129,2]
[395081127,1764409846447,-166.66,0.00015153,2]
[395081128,1764409846456,-150.0,0.00015188,2]
[395081129,1764409846465,-204.0,0.00015245,2]
[395081130,1764409846474,-150.0,0.00015266,2]
[395081131,1764409846483,-150.0,0.00015266,2]
[395081132,1764409846492,-204.0,0.00015276,2]
[395081133,1764409846501,-168.0,0.00015285,2]
[395081134,1764409846510,-220.0855178,0.00015297,2]
[395081135,1764409846519,-827.0,0.00015336,2]
[395081136,1764409846530,-204.0,0.00015337,2]
[395081137,1764409846539,-300.0,0.00015351,2]
[395081138,1764409846548,-300.0,0.00015351,2]
[395081139,1764409846560,-2598.48870293,0.00015352,2]
[395081140,1764409846599,-716.66,0.00015352,2]
[395081141,1764409846610,-1377.0,0.00015352,2]
[395081142,1764409846621,-40387.40590466,0.00015352,2]
[395081143,1764409846644,-588.41897691,0.00015352,2]
[395081145,1764409853013,-2177.62818745,0.00015352,2]
[395081146,1764409853105,-2758.19264999,0.00015352,2]
[395081147,1764409854963,-219.22476393,0.00015262,2]
[395081148,1764409854972,-7323.50930506,0.00015352,2]
[395081149,1764409854983,-702072.696273,0.00015352,2]
[395081150,1764409854991,-600.0,0.00015352,2]
[395081151,1764409855000,-151.0,0.00015352,2]
[395081152,1764409855009,-267.46074303,0.00015352,2]
[395081153,1764409855019,-666.0,0.00015352,2]
[395081154,1764409855028,-300.0,0.00015352,2]
[395081155,1764409855037,-575.04444361,0.00015352,2]
[395081156,1764409855046,-204.0,0.0001536,2]
[395081157,1764409855055,-1003.2403803,0.00015361,2]
[395081158,1764409855065,-1000.0,0.00015362,2]
[395081159,1764409855075,-33580.8861,0.00015362,2]
[395081160,1764409855084,-760.2064,0.00015362,2]
[395081161,1764409855094,-160.537,0.00015362,2]
[395081162,1764409855102,-1785.983,0.00015362,2]
[395081163,1764409855113,-1693.0,0.00015366,2]
[395081164,1764409855122,-13647.44856679,0.00015372,2]
[395081165,1764409855131,-12050.72640789,0.00015372,2]
[395081166,1764409855140,-150.0,0.00015375,2]
[395081167,1764409855149,-1485.0,0.00015397,2]
[395081168,1764409855158,-5888.0,0.00015407,2]
[395081169,1764409855167,-168.0,0.00015414,2]
[395081170,1764409855176,-150.0,0.00015422,2]
[395081171,1764409855185,-1700.7756,0.00015425,2]
[395081172,1764409855194,-1575.0,0.00015427,2]
[395081173,1764409855203,-1300.1,0.00015451,2]
[395081174,1764409855213,-200.0,0.00015451,2]
[395081175,1764409855224,-620.0,0.00015451,2]
[395081176,1764409855234,-151.0,0.00015451,2]